fUSD/lending_fUSD_20250226
["ID","MTS","AMOUNT","RATE_DAILY","PERIOD"]
[354556123,1740574254309,-500.0,0.00041095,14]
[354556125,1740574254319,-521.61,0.00041095,14]
[354556127,1740574254330,-1057.7,0.00041095,14]
[354556136,1740574254413,-977.89,0.00041095,14]
[354556138,1740574254424,-500.0,0.00041095,14]
[354556140,1740574254433,-458.70815369,0.00041095,14]
[354556142,1740574254443,-4213.93,0.00041095,14]
[354556144,1740574254453,-771.43,0.00041095,14]
[354556146,1740574254463,-500.0,0.00041095,14]
[354556148,1740574254473,-1754.72,0.00041095,14]
[354556150,1740574254483,-500.0,0.00041095,14]
[354556153,1740574254493,-151.0,0.00041095,14]
[354556155,1740574254503,-151.0,0.00041095,14]
[354556157,1740574254513,-151.0,0.00041095,14]
[354556158,1740574254522,-5852.63,0.00041095,14]
[354556160,1740574254531,-151.0,0.00041095,14]
[354556163,1740574254545,-500.0,0.00041095,14]
[354556164,1740574254554,-151.0,0.00041095,14]
[354556166,1740574254563,-500.0,0.00041095,14]
[354556168,1740574254572,-897.48,0.00041095,14]
[354556170,1740574254583,-1346.42,0.00041095,14]
[354556172,1740574254593,-2233.96,0.00041095,14]
[354556175,1740574254604,-1971.64,0.00041095,14]
[354556177,1740574254614,-1876.09,0.00041095,14]
[354556179,1740574254623,-513.25483639,0.00041095,14]
[354556181,1740574254632,-2279.08,0.00041095,14]
[354556183,1740574254642,-500.0,0.00041095,14]
[354556184,1740574254651,-603.55,0.00041095,14]
[354556186,1740574254660,-626.46,0.00041095,14]
[354556188,1740574254669,-500.0,0.00041095,14]
[354556190,1740574254678,-503.20352872,0.00041095,14]
[354556192,1740574254687,-500.0,0.00041095,14]
[354556194,1740574254696,-659.69,0.00041095,14]
[354556196,1740574254706,-500.0,0.00041095,14]
[354556198,1740574254715,-511.85619143,0.00041095,14]
[354556200,1740574254724,-5224.29,0.00041095,14]
[354556202,1740574254733,-500.0,0.00041095,14]
[354556204,1740574254742,-500.0,0.00041095,14]
[354556206,1740574254752,-500.0,0.00041095,14]
[354556208,1740574254761,-2200.19,0.00041095,14]
[354556210,1740574254770,-605.97,0.00041095,14]
[354556212,1740574254779,-1331.49,0.00041095,14]
[354556214,1740574254789,-500.0,0.00041095,14]
[354556216,1740574254798,-500.0,0.00041095,14]
[354556218,1740574254808,-1916.48,0.00041095,14]
[354556220,1740574254818,-500.0,0.00041095,14]
[354556222,1740574254828,-6413.65,0.00041095,14]
[354556224,1740574254838,-500.0,0.00041095,14]
[354556226,1740574254848,-500.0,0.00041095,14]
[354556228,1740574254861,-2936.64,0.00041095,14]
[354556230,1740574254872,-500.0,0.00041095,14]
[354556232,1740574254883,-500.0,0.00041095,14]
[354556234,1740574254894,-559.07,0.00041095,14]
[354556236,1740574254906,-200.0,0.00041095,7]
[354556238,1740574254918,-1794.56,0.00041095,14]
[354556240,1740574254930,-500.0,0.00041095,14]
[354556242,1740574254941,-151.0,0.00041095,14]
[354556244,1740574254952,-151.0,0.00041095,14]
[354556246,1740574254963,-896.93,0.00041095,14]
[354556248,1740574254974,-151.0,0.00041095,14]
[354556250,1740574254984,-500.0,0.00041095,14]
[354556252,1740574254996,-2341.64,0.00041095,14]
[354556254,1740574255006,-1604.08,0.00041095,14]
[354556257,1740574255020,-151.0,0.00041095,14]
[354556259,1740574255031,-4023.58,0.00041095,14]
[354556260,1740574255040,-151.0,0.00041095,14]
[354556262,1740574255051,-501.00360562,0.00041095,14]
[354556264,1740574255061,-151.0,0.00041095,14]
[354556266,1740574255072,-515.02,0.00041095,14]
[354556268,1740574255082,-151.0,0.00041095,14]
[354556270,1740574255092,-500.0,0.00041095,14]
[354556272,1740574255105,-151.0,0.00041095,14]
[354556274,1740574255115,-500.0,0.00041095,14]
[354556276,1740574255126,-151.0,0.00041095,14]
[354556278,1740574255135,-2295.62,0.00041095,14]
[354556280,1740574255145,-151.0,0.00041095,14]
[354556282,1740574255157,-500.0,0.00041095,14]
[354556283,1740574255167,-500.0,0.00041095,14]
[354556284,1740574255177,-500.0,0.00041095,14]
[354556285,1740574255187,-5919.93,0.00041095,14]
[354556286,1740574255197,-500.0,0.00041095,14]
[354556287,1740574255207,-546.37775708,0.00041095,14]
[354556288,1740574255216,-500.0,0.00041095,14]
[354556289,1740574255227,-500.0,0.00041095,14]
[354556290,1740574255237,-3276.2,0.00041095,14]
[354556291,1740574255246,-5414.79,0.00041095,14]
[354556292,1740574255256,-500.0,0.00041095,14]
[354556293,1740574255266,-500.0,0.00041095,14]
[354556295,1740574255276,-945.89,0.00041095,14]
[354556297,1740574255286,-500.0,0.00041095,14]
[354556299,1740574255296,-500.0,0.00041095,14]
[354556301,1740574255306,-500.0,0.00041095,14]
[354556303,1740574255317,-920.1,0.00041095,14]
[354556305,1740574255328,-2184.97,0.00041095,14]
[354556307,1740574255339,-500.0,0.00041095,14]
[354556309,1740574255349,-501.28183522,0.00041095,14]
[354556311,1740574255365,-500.66606976,0.00041095,14]
[354556313,1740574255375,-500.0,0.00041095,14]
[354556315,1740574255386,-500.0,0.00041095,14]
[354556317,1740574255397,-500.0,0.00041095,14]
[354556319,1740574255407,-500.0,0.00041095,14]
[354556321,1740574255418,-2468.11,0.00041095,14]
[354556323,1740574255430,-500.0,0.00041095,14]
[354556325,1740574255441,-500.0,0.00041095,14]
[354556327,1740574255450,-1431.42,0.00041095,14]
[354556329,1740574255460,-500.0,0.00041095,14]
[354556331,1740574255470,-500.0,0.00041095,14]
[354556333,1740574255480,-573.79,0.00041095,14]
[354556335,1740574255491,-1690.54,0.00041095,14]
[354556337,1740574255501,-928.54,0.00041095,14]
[354556339,1740574255512,-500.0,0.00041095,14]
[354556341,1740574255522,-500.0,0.00041095,14]
[354556343,1740574255532,-500.0,0.00041095,14]
[354556345,1740574255543,-1693.49,0.00041095,14]
[354556347,1740574255556,-500.0,0.00041095,14]
[354556349,1740574255566,-924.42,0.00041095,14]
[354556351,1740574255575,-539.26707145,0.00041095,14]
[354556353,1740574255584,-1920.2,0.00041095,14]
[354556355,1740574255594,-2936.27,0.00041095,14]
[354556357,1740574255607,-2019.97,0.00041095,14]
[354556359,1740574255616,-1740.06,0.00041095,14]
[354556361,1740574255627,-885.92,0.00041095,14]
[354556363,1740574255637,-500.0,0.00041095,14]
[354556365,1740574255646,-500.0,0.00041095,14]
[354556367,1740574255655,-595.43,0.00041095,14]
[354556369,1740574255664,-3323.28,0.00041095,14]
[354556371,1740574255673,-500.0,0.00041095,14]
[354556373,1740574255682,-1099.11,0.00041095,14]
[354556375,1740574255691,-1839.18,0.00041095,14]
[354556377,1740574255700,-500.0,0.00041095,14]
[354556379,1740574255709,-1378.77,0.00041095,14]
[354556381,1740574255718,-483.52,0.00041095,14]
[354556383,1740574255727,-1462.14,0.00041095,14]
[354556385,1740574255736,-151.0,0.00041095,14]
[354556387,1740574255745,-500.0,0.00041095,14]
[354556389,1740574255754,-151.0,0.00041095,14]
[354556391,1740574255762,-151.0,0.00041095,14]
[354556393,1740574255771,-151.0,0.00041095,14]
[354556394,1740574255780,-151.0,0.00041095,14]
[354556396,1740574255789,-3931.52,0.00041095,14]
[354556398,1740574255798,-500.0,0.00041095,14]
[354556400,1740574255807,-629.91,0.00041095,14]
[354556402,1740574255816,-784.79,0.00041095,14]
[354556404,1740574255825,-500.0,0.00041095,14]
[354556406,1740574255835,-3884.53,0.00041095,14]
[354556408,1740574255845,-812.59,0.00041095,14]
[354556410,1740574255856,-500.0,0.00041095,14]
[354556412,1740574255865,-2062.13,0.00041095,14]
[354556414,1740574255875,-500.0,0.00041095,14]
[354556416,1740574255884,-2508.51,0.00041095,14]
[354556418,1740574255893,-6201.34,0.00041095,14]
[354556420,1740574255901,-670.49,0.00041095,14]
[354556422,1740574255911,-500.0,0.00041095,14]
[354556424,1740574255920,-500.0,0.00041095,14]
[354556426,1740574255929,-2372.62,0.00041095,14]
[354556428,1740574255939,-1042.75,0.00041095,14]
[354556430,1740574255948,-3881.06,0.00041095,14]
[354556431,1740574255957,-1757.3,0.00041095,14]
[354556433,1740574255967,-531.03773733,0.00041095,14]
[354556435,1740574255976,-1554.32,0.00041095,14]
[354556437,1740574255985,-199.40465938,0.00041095,14]
[354556439,1740574255995,-635.83,0.00041095,14]
[354556441,1740574256004,-1141.43,0.00041095,14]
[354556443,1740574256013,-501.21519133,0.00041095,14]
[354556445,1740574256022,-1541.28,0.00041095,7]
[354556447,1740574256031,-500.0,0.00041095,14]
[354556449,1740574256040,-500.0,0.00041095,14]
[354556451,1740574256050,-210.0572203,0.00041095,14]
[354556453,1740574256059,-1500.0,0.00041096,120]
[354556455,1740574256068,-232.0,0.000411,30]
[354556457,1740574256077,-367.0,0.000411,30]
[354556459,1740574256086,-150.0,0.0004116,14]
[354556461,1740574256096,-929.36,0.00041204,14]
[354556463,1740574256106,-763.27,0.00041204,14]
[354556465,1740574256115,-1000.0,0.00041266,14]
[354556467,1740574256124,-1259.88684752,0.00041269,15]
[354556469,1740574256134,-222.23851381,0.00041269,2]
[354556471,1740574256143,-17108.95095439,0.00041269,2]
[354556473,1740574256152,-163.036319,0.0004136,30]
[354556475,1740574256161,-429.4,0.00041367,2]
[354556477,1740574256172,-500.0,0.00041368,14]
[354556479,1740574256181,-500.0,0.00041368,14]
[354556481,1740574256191,-500.0,0.00041368,14]
[354556483,1740574256200,-500.0,0.00041368,14]
[354556485,1740574256209,-500.0,0.00041368,14]
[354556487,1740574256219,-500.0,0.00041368,14]
[354556489,1740574256229,-151.0,0.00041368,14]
[354556491,1740574256239,-929.36,0.00041368,14]
[354556493,1740574256249,-929.36,0.00041368,14]
[354556495,1740574256259,-929.36,0.00041368,14]
[354556497,1740574256269,-929.36,0.00041368,14]
[354556499,1740574256278,-929.36,0.00041368,14]
[354556501,1740574256288,-929.36,0.00041368,14]
[354556503,1740574256298,-929.36,0.00041368,14]
[354556505,1740574256307,-929.4047824,0.00041368,14]
[354556507,1740574256316,-763.27,0.00041368,14]
[354556509,1740574256326,-763.27,0.00041368,14]
[354556511,1740574256335,-763.27,0.00041368,14]
[354556513,1740574256346,-763.27,0.00041368,14]
[354556515,1740574256356,-763.27,0.00041368,14]
[354556517,1740574256366,-763.27,0.00041368,14]
[354556519,1740574256376,-763.27,0.00041368,14]
[354556521,1740574256386,-763.49233499,0.00041368,14]
[354556523,1740574256395,-1607.78,0.00041369,14]
[354556525,1740574256404,-505.57193928,0.00041369,14]
[354556527,1740574256414,-500.0,0.00041369,14]
[354556529,1740574256424,-500.0,0.00041369,14]
[354556531,1740574256433,-500.0,0.00041369,14]
[354556533,1740574256442,-500.0,0.00041369,14]
[354556534,1740574256452,-500.0,0.00041369,14]
[354556535,1740574256461,-629.22852168,0.00041369,14]
[354556536,1740574256470,-500.0,0.00041369,14]
[354556538,1740574256479,-500.0,0.00041369,14]
[354556539,1740574256489,-230.12320046,0.00041369,14]
[354556540,1740574256498,-243.93096083,0.00041369,14]
[354556541,1740574256508,-500.0,0.00041369,14]
[354556542,1740574256517,-502.28666093,0.00041369,14]
[354556543,1740574256526,-501.52813718,0.00041369,14]
[354556544,1740574256535,-501.18897814,0.00041369,14]
[354556545,1740574256548,-509.12607805,0.00041369,14]
[354556546,1740574256559,-304.29727347,0.00041369,14]
[354556547,1740574256569,-503.68164783,0.00041369,14]
[354556548,1740574256578,-500.0,0.00041369,14]
[354556549,1740574256588,-501.12425076,0.00041369,14]
[354556550,1740574256597,-502.12380596,0.00041369,14]
[354556551,1740574256609,-500.0,0.00041369,14]
[354556552,1740574256618,-500.0,0.00041369,14]
[354556553,1740574256629,-502.54393872,0.00041369,14]
[354556554,1740574256639,-500.72696343,0.00041369,14]
[354556555,1740574256648,-500.0,0.00041369,14]
[354556556,1740574256657,-500.0,0.00041369,14]
[354556558,1740574256667,-500.96454188,0.00041369,14]
[354556559,1740574256676,-502.45444396,0.00041369,5]
[354556560,1740574256686,-505.23469389,0.00041369,14]
[354556561,1740574256696,-617.56015701,0.00041369,14]
[354556562,1740574256705,-500.91225496,0.00041369,14]
[354556563,1740574256715,-502.21924807,0.00041369,2]
[354556564,1740574256724,-322.17704466,0.00041369,14]
[354556565,1740574256734,-500.0,0.00041369,14]
[354556566,1740574256744,-508.60358334,0.00041369,14]
[354556567,1740574256754,-506.20412259,0.00041369,14]
[354556568,1740574256765,-334.67491712,0.00041369,14]
[354556569,1740574256774,-734.2,0.00041369,14]
[354556570,1740574256784,-518.65280418,0.00041369,14]
[354556571,1740574256794,-830.31,0.00041369,14]
[354556572,1740574256803,-677.29,0.00041369,14]
[354556573,1740574256812,-290.47414543,0.00041369,14]
[354556574,1740574256821,-789.79,0.00041369,14]
[354556575,1740574256830,-500.0,0.00041369,14]
[354556576,1740574256839,-1015.78,0.00041369,14]
[354556577,1740574256850,-1057.26,0.00041369,14]
[354556578,1740574256860,-833.61,0.00041369,14]
[354556579,1740574256869,-506.39163518,0.00041369,14]
[354556580,1740574256878,-512.29325534,0.00041369,14]
[354556581,1740574256888,-500.0,0.00041369,14]
[354556582,1740574256897,-500.0,0.00041369,14]
[354556583,1740574256908,-500.0,0.00041369,14]
[354556584,1740574256918,-500.0,0.00041369,14]
[354556585,1740574256930,-500.0,0.00041369,14]
[354556586,1740574256942,-1150.07,0.00041369,14]
[354556587,1740574256954,-1353.88,0.00041369,14]
[354556588,1740574256966,-509.46319691,0.00041369,14]
[354556589,1740574256975,-518.43998956,0.00041369,14]
[354556590,1740574256985,-524.11147557,0.00041369,14]
[354556591,1740574256994,-1137.8,0.00041369,14]
[354556592,1740574257003,-500.0,0.00041369,14]
[354556593,1740574257013,-500.0,0.00041369,14]
[354556594,1740574257022,-500.0,0.00041369,14]
[354556595,1740574257032,-500.0,0.00041369,14]
[354556596,1740574257042,-500.0,0.00041369,14]
[354556597,1740574257051,-500.0,0.00041369,14]
[354556598,1740574257060,-500.0,0.00041369,14]
[354556599,1740574257070,-753.0,0.00041369,14]
[354556600,1740574257079,-564.48,0.00041369,14]
[354556601,1740574257089,-500.0,0.00041369,14]
[354556602,1740574257098,-951.56,0.00041369,14]
[354556603,1740574257109,-500.0,0.00041369,14]
[354556604,1740574257118,-732.68,0.00041369,14]
[354556605,1740574257128,-500.0,0.00041369,14]
[354556606,1740574257136,-539.59590995,0.00041369,14]
[354556607,1740574257145,-500.0,0.00041369,14]
[354556608,1740574257155,-500.0,0.00041369,14]
[354556609,1740574257164,-501.82614257,0.00041369,14]
[354556610,1740574257173,-1097.25,0.00041369,14]
[354556611,1740574257182,-525.14677665,0.00041369,14]
[354556612,1740574257191,-502.68834543,0.00041369,14]
[354556613,1740574257201,-500.0,0.00041369,14]
[354556614,1740574257210,-500.0,0.00041369,14]
[354556615,1740574257219,-633.85,0.00041369,14]
[354556616,1740574257228,-508.31594562,0.00041369,14]
[354556617,1740574257237,-1045.67,0.00041369,14]
[354556618,1740574257246,-500.0,0.00041369,14]
[354556619,1740574257255,-500.0,0.00041369,14]
[354556620,1740574257264,-500.0,0.00041369,14]
[354556621,1740574257274,-764.7,0.00041369,14]
[354556622,1740574257283,-500.0,0.00041369,14]
[354556623,1740574257292,-500.0,0.00041369,14]
[354556624,1740574257302,-1466.5,0.00041369,14]
[354556625,1740574257312,-500.0,0.00041369,14]
[354556626,1740574257321,-708.63,0.00041369,14]
[354556627,1740574257331,-506.05505307,0.00041369,14]
[354556628,1740574257341,-984.59,0.00041369,14]
[354556629,1740574257351,-500.0,0.00041369,14]
[354556630,1740574257362,-970.4,0.00041369,14]
[354556631,1740574257372,-500.0,0.00041369,14]
[354556632,1740574257381,-502.44603431,0.00041369,14]
[354556633,1740574257391,-828.29,0.00041369,14]
[354556634,1740574257400,-500.0,0.00041369,14]
[354556635,1740574257410,-829.73,0.00041369,14]
[354556636,1740574257420,-500.0,0.00041369,14]
[354556637,1740574257430,-500.0,0.00041369,14]
[354556638,1740574257439,-500.0,0.00041369,14]
[354556639,1740574257449,-868.65,0.00041369,14]
[354556640,1740574257459,-509.21781768,0.00041369,14]
[354556641,1740574257468,-500.0,0.00041369,14]
[354556642,1740574257477,-819.15,0.00041369,14]
[354556643,1740574257486,-926.85,0.00041369,14]
[354556644,1740574257496,-500.0,0.00041369,14]
[354556645,1740574257506,-500.0,0.00041369,14]
[354556646,1740574257520,-500.0,0.00041369,14]
[354556647,1740574257529,-500.0,0.00041369,14]
[354556648,1740574257540,-835.34,0.00041369,14]
[354556649,1740574257551,-1623.59,0.00041369,14]
[354556650,1740574257561,-500.0,0.00041369,14]
[354556651,1740574257570,-371.09055745,0.00041369,14]
[354556652,1740574257579,-500.0,0.00041369,120]
[354556653,1740574257589,-500.0,0.00041369,14]
[354556654,1740574257599,-500.0,0.00041369,14]
[354556655,1740574257611,-816.76,0.00041369,14]
[354556656,1740574257621,-593.47,0.00041369,14]
[354556657,1740574257631,-500.0,0.00041369,14]
[354556658,1740574257642,-501.46508197,0.00041369,14]
[354556659,1740574257651,-500.0,0.00041369,14]
[354556660,1740574257662,-500.0,0.00041369,14]
[354556661,1740574257672,-500.0,0.00041369,14]
[354556662,1740574257682,-612.21337492,0.00041369,14]
[354556663,1740574257691,-500.0,0.00041369,14]
[354556664,1740574257702,-2210.11,0.00041369,14]
[354556665,1740574257711,-500.0,0.00041369,14]
[354556666,1740574257721,-500.0,0.00041369,14]
[354556667,1740574257730,-543.81,0.00041369,14]
[354556668,1740574257740,-500.0,0.00041369,14]
[354556669,1740574257750,-500.0,0.00041369,14]
[354556670,1740574257759,-936.41,0.00041369,14]
[354556671,1740574257769,-500.0,0.00041369,14]
[354556672,1740574257778,-500.0,0.00041369,14]
[354556673,1740574257787,-500.0,0.00041369,14]
[354556674,1740574257797,-905.42,0.00041369,14]
[354556675,1740574257807,-825.65,0.00041369,14]
[354556676,1740574257816,-1514.4,0.00041369,14]
[354556677,1740574257826,-512.97688258,0.00041369,14]
[354556678,1740574257836,-1645.92,0.00041369,14]
[354556679,1740574257846,-500.0,0.00041369,14]
[354556680,1740574257858,-1776.84,0.00041369,14]
[354556681,1740574257867,-1762.24,0.00041369,14]
[354556682,1740574257877,-500.0,0.00041369,14]
[354556683,1740574257887,-983.07,0.00041369,14]
[354556684,1740574257896,-856.64,0.00041369,14]
[354556685,1740574257908,-500.0,0.00041369,14]
[354556686,1740574257919,-500.0,0.00041369,14]
[354556687,1740574257928,-1554.29,0.00041369,14]
[354556688,1740574257938,-500.0,0.00041369,14]
[354556689,1740574257948,-500.0,0.00041369,14]
[354556690,1740574257957,-500.0,0.00041369,14]
[354556691,1740574257967,-500.0,0.00041369,14]
[354556692,1740574257977,-674.92,0.00041369,14]
[354556693,1740574257986,-500.0,0.00041369,14]
[354556694,1740574257996,-774.16,0.00041369,14]
[354556695,1740574258005,-542.4,0.00041369,14]
[354556696,1740574258015,-514.29,0.00041369,14]
[354556697,1740574258025,-500.0,0.00041369,14]
[354556698,1740574258034,-545.50367764,0.00041369,14]
[354556699,1740574258044,-500.0,0.00041369,14]
[354556700,1740574258053,-500.0,0.00041369,14]
[354556701,1740574258063,-500.0,0.00041369,14]
[354556702,1740574258072,-952.64,0.00041369,14]
[354556703,1740574258082,-580.19,0.00041369,14]
[354556704,1740574258092,-809.47,0.00041369,14]
[354556705,1740574258101,-1084.5,0.00041369,14]
[354556706,1740574258115,-500.0,0.00041369,14]
[354556707,1740574258125,-1314.59,0.00041369,14]
[354556708,1740574258135,-500.0,0.00041369,14]
[354556709,1740574258146,-500.0,0.00041369,14]
[354556710,1740574258155,-500.0,0.00041369,14]
[354556711,1740574258164,-500.0,0.00041369,14]
[354556712,1740574258174,-201.49275028,0.00041369,14]
[354556713,1740574258183,-500.0,0.00041369,14]
[354556714,1740574258192,-1351.39,0.00041369,14]
[354556715,1740574258201,-500.0,0.00041369,14]
[354556716,1740574258211,-500.0,0.00041369,14]
[354556717,1740574258220,-934.47,0.00041369,14]
[354556718,1740574258229,-500.0,0.00041369,30]
[354556719,1740574258238,-500.0,0.00041369,14]
[354556720,1740574258247,-1836.02,0.00041369,14]
[354556721,1740574258256,-526.74917016,0.00041369,14]
[354556722,1740574258265,-1430.64,0.00041369,14]
[354556723,1740574258274,-500.0,0.00041369,14]
[354556724,1740574258284,-500.0,0.00041369,14]
[354556725,1740574258293,-1699.41,0.00041369,14]
[354556726,1740574258302,-500.0,0.00041369,14]
[354556727,1740574258311,-525.18137963,0.00041369,14]
[354556728,1740574258321,-1145.9,0.00041369,14]
[354556729,1740574258332,-500.0,0.00041369,14]
[354556730,1740574258342,-500.0,0.00041369,14]
[354556731,1740574258352,-500.0,0.00041369,14]
[354556732,1740574258364,-500.0,0.00041369,14]
[354556733,1740574258375,-500.0,0.00041369,14]
[354556734,1740574258384,-1560.38,0.00041369,14]
[354556735,1740574258394,-500.0,0.00041369,14]
[354556736,1740574258403,-1035.66,0.00041369,14]
[354556737,1740574258413,-500.0,0.00041369,14]
[354556738,1740574258423,-504.66472783,0.00041369,14]
[354556739,1740574258433,-510.17,0.00041369,14]
[354556740,1740574258443,-500.0,0.00041369,14]
[354556741,1740574258452,-521.2,0.00041369,14]
[354556742,1740574258462,-500.0,0.00041369,14]
[354556743,1740574258472,-505.22180586,0.00041369,14]
[354556744,1740574258482,-1639.86,0.00041369,14]
[354556745,1740574258491,-535.09,0.00041369,14]
[354556746,1740574258500,-500.0,0.00041369,14]
[354556747,1740574258514,-492.18173919,0.00041369,14]
[354556748,1740574258523,-500.0,0.00041369,14]
[354556749,1740574258533,-500.0,0.00041369,14]
[354556750,1740574258542,-500.0,0.00041369,14]
[354556751,1740574258555,-500.0,0.00041369,14]
[354556752,1740574258565,-500.0,0.00041369,14]
[354556753,1740574258575,-500.0,0.00041369,14]
[354556754,1740574258586,-778.23,0.00041369,14]
[354556755,1740574258596,-500.0,0.00041369,14]
[354556756,1740574258607,-1070.7,0.00041369,14]
[354556757,1740574258617,-500.0,0.00041369,14]
[354556758,1740574258626,-1301.52,0.00041369,14]
[354556759,1740574258636,-502.90030272,0.00041369,14]
[354556760,1740574258646,-885.47,0.00041369,14]
[354556761,1740574258656,-587.02286043,0.00041369,14]
[354556762,1740574258665,-1244.11,0.00041369,14]
[354556763,1740574258674,-500.0,0.00041369,14]
[354556764,1740574258684,-500.0,0.00041369,14]
[354556765,1740574258694,-1391.29,0.00041369,14]
[354556766,1740574258703,-500.0,0.00041369,14]
[354556767,1740574258712,-1021.32,0.00041369,14]
[354556768,1740574258722,-2512.52,0.00041369,14]
[354556769,1740574258731,-688.14,0.00041369,14]
[354556770,1740574258741,-500.0,0.00041369,14]
[354556771,1740574258751,-1058.45,0.00041369,14]
[354556772,1740574258761,-233.74334734,0.00041369,14]
[354556773,1740574258771,-735.83,0.00041369,14]
[354556774,1740574258781,-503.89172865,0.00041369,14]
[354556775,1740574258790,-536.27,0.00041369,14]
[354556776,1740574258800,-500.0,0.00041369,14]
[354556777,1740574258810,-500.0,0.00041369,14]
[354556778,1740574258820,-500.0,0.00041369,14]
[354556779,1740574258830,-818.48,0.00041369,14]
[354556780,1740574258839,-2175.93,0.00041369,14]
[354556781,1740574258850,-500.0,0.00041369,14]
[354556782,1740574258861,-500.0,0.00041369,14]
[354556783,1740574258871,-500.0,0.00041369,14]
[354556784,1740574258882,-1419.81,0.00041369,14]
[354556785,1740574258891,-500.0,0.00041369,14]
[354556786,1740574258901,-500.0,0.00041369,14]
[354556787,1740574258911,-500.0,0.00041369,14]
[354556788,1740574258921,-3148.61,0.00041369,14]
[354556789,1740574258931,-500.0,0.00041369,14]
[354556790,1740574258941,-500.0,0.00041369,14]
[354556791,1740574258950,-694.45,0.00041369,14]
[354556792,1740574258960,-1187.47,0.00041369,14]
[354556793,1740574258969,-626.25,0.00041369,14]
[354556794,1740574258979,-500.0,0.00041369,14]
[354556795,1740574258989,-1084.14,0.00041369,14]
[354556796,1740574258998,-500.0,0.00041369,14]
[354556797,1740574259010,-1812.38,0.00041369,14]
[354556798,1740574259020,-512.29631212,0.00041369,14]
[354556799,1740574259030,-570.12138388,0.00041369,14]
[354556800,1740574259040,-1891.14,0.00041369,14]
[354556801,1740574259049,-571.21988394,0.00041369,14]
[354556802,1740574259059,-500.0,0.00041369,14]
[354556803,1740574259068,-1498.69,0.00041369,14]
[354556804,1740574259079,-1496.71,0.00041369,14]
[354556805,1740574259088,-1483.3,0.00041369,14]
[354556806,1740574259098,-173.12228233,0.00041369,14]
[354556807,1740574259110,-500.0,0.00041369,14]
[354556808,1740574259120,-1267.25,0.00041369,14]
[354556809,1740574259131,-1566.7,0.00041369,14]
[354556810,1740574259141,-812.56,0.00041369,14]
[354556811,1740574259150,-500.0,0.00041369,14]
[354556812,1740574259160,-1162.33,0.00041369,14]
[354556813,1740574259170,-847.91,0.00041369,14]
[354556814,1740574259180,-672.65,0.00041369,14]
[354556815,1740574259190,-500.0,0.00041369,14]
[354556816,1740574259201,-1999.54,0.00041369,14]
[354556817,1740574259211,-500.0,0.00041369,14]
[354556818,1740574259222,-2918.9,0.00041369,14]
[354556819,1740574259233,-501.7268658,0.00041369,14]
[354556820,1740574259244,-500.0,0.00041369,14]
[354556821,1740574259255,-500.0,0.00041369,14]
[354556822,1740574259265,-2461.64,0.00041369,14]
[354556823,1740574259275,-500.0,0.00041369,14]
[354556824,1740574259287,-2154.95,0.00041369,14]
[354556825,1740574259297,-1409.25,0.00041369,14]
[354556826,1740574259306,-500.0,0.00041369,14]